bitfinex/quotes_SOLUSD_20250305
["timestamp","ask_amount","ask_price","bid_price","bid_amount"]
[1741134685851,32.33931675,144.38,144.33,6.9584]
[1741134686032,32.33931675,144.38,144.34,20.0]
[1741134686234,32.33931675,144.41,144.33,0.03]
[1741134686235,32.33931675,144.35,144.33,0.03]
[1741134686545,32.33931675,144.34,144.33,0.03]
[1741134687043,39.26731675,144.34,144.33,0.03]
[1741134687414,71.89095664,144.34,144.33,0.03]
[1741134687636,71.89095664,144.34,144.22,6.5445]
[1741134687822,32.33931675,144.25,144.19,0.03]
[1741134688016,32.33931675,144.23,144.19,0.03]
[1741134688223,32.33931675,144.22,144.19,0.03]
[1741134688529,0.14216157,144.32,144.21,32.33931675]
[1741134688731,32.33931675,144.29,144.22,32.33931675]
[1741134689621,32.33931675,144.23,144.19,0.03]
[1741134690039,32.33931675,144.22,144.19,312.03]
[1741134690617,32.33931675,144.23,144.19,0.03]
[1741134690822,32.33931675,144.26,144.2,32.33931675]
[1741134691124,32.33931675,144.28,144.22,32.33931675]
[1741134691324,32.33931675,144.29,144.22,32.33931675]
[1741134691523,81.8,144.28,144.22,32.33931675]
[1741134692026,114.13931675,144.28,144.22,32.33931675]
[1741134692641,81.8,144.28,144.23,39.27261675]
[1741134692832,81.8,144.28,144.23,45.88231675]
[1741134693545,114.13931675,144.28,144.23,13.543]
[1741134693726,114.13931675,144.28,144.23,6.9333]
[1741134694224,32.33931675,144.27,144.23,6.9333]
[1741134694423,81.8,144.28,144.23,6.9333]
[1741134694631,81.8,144.28,144.24,32.33931675]
[1741134695029,32.33931675,144.25,144.2,6.9348]
[1741134695235,32.33931675,144.23,144.19,6.5936]
[1741134695458,32.33931675,144.23,144.19,6.9652]
[1741134696434,32.33931675,144.23,144.19,0.03]
[1741134697222,114.13931675,144.22,144.19,0.03]
[1741134697546,6.9319,144.26,144.19,0.03]
[1741134697547,114.13931675,144.21,144.19,0.03]
[1741134697848,81.8,144.21,144.19,0.03]
[1741134698350,114.13931675,144.21,144.19,0.03]
[1741134698537,32.33931675,144.2,144.19,0.03]
[1741134701650,32.33931675,144.2,144.16,0.03]
[1741134701849,114.13931675,144.19,144.16,0.03]
[1741134702623,114.13931675,144.19,144.16,6.9667]
[1741134704049,114.13931675,144.19,144.16,0.03]
[1741134704232,32.33931675,144.17,144.16,0.03]
[1741134706237,32.62363989,144.17,144.16,0.03]
[1741134706437,39.55983989,144.17,144.16,0.03]
[1741134707147,46.80373989,144.17,144.16,0.03]
[1741134710864,46.80373989,144.17,144.16,0.0001]
[1741134711268,0.28432314,144.13,144.11,0.03]
[1741134711427,32.62363989,144.12,144.11,0.03]
[1741134711935,38.97223989,144.12,144.11,0.0001]
[1741134712139,0.28432314,144.08,144.06,0.03]
[1741134712351,39.56463989,144.07,144.06,0.03]
[1741134712551,71.90395664,144.07,144.06,0.03]
[1741134712753,114.42363989,144.07,144.06,0.03]
[1741134712952,32.33931675,144.07,144.06,0.03]
[1741134713153,32.33931675,144.08,144.06,0.03]
[1741134713365,12.5992,144.11,144.06,0.03]
[1741134713366,32.33931675,144.09,144.06,0.03]
[1741134713763,114.13931675,144.1,144.06,0.03]
[1741134713938,81.8,144.1,144.06,0.03]
[1741134714143,114.13931675,144.1,144.06,0.03]
[1741134714364,114.13931675,144.1,144.05,6.972]
[1741134714661,32.33931675,144.09,144.05,6.972]
[1741134714869,81.8,144.1,144.05,56.66631675]
[1741134715167,114.13931675,144.1,144.05,24.327]
[1741134715539,114.13931675,144.1,144.05,6.972]
[1741134716067,81.8,144.1,144.05,56.66631675]
[1741134716444,81.8,144.1,144.05,368.66631675]
[1741134716640,32.33931675,144.13,144.06,32.33931675]
[1741134716844,81.8,144.15,144.08,32.33931675]
[1741134716845,32.33931675,144.14,144.08,32.33931675]
[1741134717050,114.13931675,144.15,144.08,32.33931675]
[1741134717260,32.33931675,144.14,144.08,32.33931675]
[1741134717462,81.8,144.13,144.08,52.33931675]
[1741134717765,81.8,144.13,144.1,32.33931675]
[1741134718255,81.8,144.13,144.1,38.78591675]
[1741134718461,81.8,144.13,144.11,6.9391]
[1741134718659,114.13931675,144.18,144.11,39.27841675]
[1741134718862,81.8,144.17,144.12,32.33931675]
[1741134719361,114.13931675,144.17,144.11,56.62621675]
[1741134719967,114.13931675,144.17,144.12,312.0]
[1741134720154,32.33931675,144.16,144.12,312.0]
[1741134720352,32.33931675,144.16,144.1,6.4466]
[1741134720559,32.33931675,144.12,144.07,6.941]
[1741134721070,32.33931675,144.13,144.06,38.78591675]
[1741134721269,32.33931675,144.11,144.06,6.4466]
[1741134721563,81.8,144.12,144.06,6.4466]
[1741134721564,32.33931675,144.1,144.06,6.4466]
[1741134721749,114.13931675,144.1,144.06,6.4466]
[1741134721951,81.8,144.1,144.06,13.388]
[1741134723380,81.8,144.1,144.06,325.388]
[1741134723570,32.33931675,144.13,144.07,32.33931675]
[1741134723765,114.13931675,144.14,144.07,32.33931675]
[1741134723948,32.33931675,144.13,144.07,32.33931675]
[1741134724150,32.33931675,144.11,144.06,318.4466]
[1741134724364,81.8,144.1,144.06,6.4466]
[1741134724549,81.8,144.09,144.06,6.4466]
[1741134724950,81.8,144.13,144.06,6.4466]
[1741134725143,81.8,144.17,144.1,32.33931675]
[1741134725363,32.33931675,144.14,144.07,32.33931675]
[1741134726473,32.33931675,144.14,144.08,6.9405]
[1741134726654,32.33931675,144.12,144.07,6.9409]
[1741134726850,32.33931675,144.11,144.07,6.9409]
[1741134727066,81.8,144.1,144.07,6.9409]
[1741134727464,0.14216157,144.15,144.05,17.385]
[1741134727465,32.33931675,144.08,144.05,0.03]
[1741134728152,81.8,144.07,144.05,0.03]
[1741134728350,114.13931675,144.07,144.05,0.03]
[1741134728671,114.13931675,144.06,144.05,0.03]
[1741134729244,32.62363989,144.06,144.05,0.03]
[1741134729656,64.96295664,144.06,144.05,0.03]
[1741134729869,66.61155664,144.06,144.05,0.03]
[1741134730462,73.55305664,144.06,144.05,0.03]
[1741134731352,41.21373989,144.06,144.05,0.03]
[1741134731564,34.27223989,144.06,144.05,0.03]
[1741134732155,73.55305664,144.06,144.05,0.03]
[1741134733170,0.14216157,144.02,143.96,6.9462]
[1741134733484,32.33931675,144.01,143.96,318.9462]
[1741134733657,114.13931675,144.01,143.96,318.9462]
[1741134733860,81.8,144.01,143.97,32.33931675]
[1741134734479,81.8,144.01,143.98,6.9454]
[1741134735082,114.13931675,144.01,143.96,318.9459]
[1741134736373,114.13931675,144.0,143.96,312.0]
[1741134736579,32.33931675,143.97,143.91,0.03]
[1741134736757,32.33931675,143.95,143.91,6.9786]
[1741134737388,114.28147832,143.94,143.91,0.03]
[1741134737669,32.33931675,143.92,143.91,0.03]
[1741134738073,32.48147832,143.92,143.91,0.03]
[1741134739058,39.42977832,143.92,143.91,0.03]
[1741134739363,32.48147832,143.92,143.91,0.03]
[1741134739564,32.62363989,143.92,143.91,0.03]
[1741134739763,64.96295664,143.92,143.91,0.03]
[1741134740076,0.28432314,143.86,143.77,32.33931675]
[1741134740255,32.33931675,143.83,143.77,6.9555]
[1741134740461,32.33931675,143.83,143.77,39.29481675]
[1741134740669,32.33931675,143.84,143.77,39.29481675]
[1741134740958,32.33931675,143.86,143.79,32.33931675]
[1741134741876,32.33931675,143.86,143.8,32.33931675]
[1741134742178,32.33931675,143.88,143.81,32.33931675]
[1741134742479,81.8,143.88,143.82,32.33931675]
[1741134742686,81.8,143.88,143.83,6.9526]
[1741134743181,32.33931675,143.87,143.83,6.9526]
[1741134743966,114.13931675,143.88,143.83,6.9526]
[1741134744375,81.8,143.88,143.83,6.9526]
[1741134744980,81.8,143.88,143.84,32.33931675]
[1741134745279,81.8,143.87,143.83,6.9526]
[1741134745481,32.33931675,143.87,143.83,6.9526]
[1741134745685,81.8,143.88,143.83,6.9526]
[1741134745899,81.8,143.9,143.84,32.33931675]
[1741134746068,81.8,143.9,143.87,32.33931675]
[1741134746275,81.8,143.92,143.87,32.33931675]
[1741134746676,81.8,143.92,143.88,6.9502]
[1741134747078,81.8,143.92,143.88,24.3257]
[1741134747272,81.8,143.92,143.89,32.33931675]
[1741134747586,55.02022788,143.99,143.9,32.33931675]
[1741134747587,114.13931675,143.96,143.9,32.33931675]
[1741134747766,114.13931675,143.96,143.91,32.33931675]
[1741134747767,81.8,143.96,143.91,32.33931675]
[1741134747967,32.33931675,143.97,143.91,344.33931675]
[1741134748168,32.33931675,143.96,143.91,312.0]
[1741134748677,32.33931675,143.97,143.92,6.9483]
[1741134748880,114.13931675,143.98,143.92,39.28761675]
[1741134749078,114.13931675,143.98,143.92,6.9483]
[1741134749491,32.33931675,143.97,143.92,6.9483]
[1741134750487,114.13931675,143.97,143.92,6.9483]
[1741134750893,81.8,143.97,143.92,56.65831675]
[1741134751085,32.33931675,144.0,143.93,32.33931675]
[1741134751284,81.8,143.99,143.94,32.33931675]
[1741134751483,5.66,144.02,143.96,32.33931675]
[1741134751484,32.33931675,144.02,143.96,32.33931675]
[1741134751797,81.8,144.03,143.98,32.33931675]
[1741134751977,81.8,144.03,143.94,1.90122314]
[1741134751978,114.13931675,144.03,143.97,32.33931675]
[1741134752180,32.33931675,144.01,143.95,32.33931675]
[1741134752572,32.33931675,144.02,143.95,32.33931675]
[1741134752794,32.33931675,144.02,143.96,32.33931675]
[1741134753088,81.8,144.03,143.97,32.33931675]
[1741134753289,81.8,144.03,143.98,32.33931675]
[1741134753595,81.8,144.03,143.97,32.33931675]
[1741134753972,81.8,144.03,143.98,32.33931675]
[1741134754374,81.8,144.03,143.98,312.0]
[1741134754790,81.8,144.03,143.97,32.33931675]
[1741134754983,32.33931675,144.04,143.98,32.33931675]
[1741134755175,32.33931675,144.03,143.97,32.33931675]
[1741134755379,114.13931675,144.02,143.95,32.33931675]
[1741134755592,32.33931675,144.0,143.94,40.90341675]
[1741134756192,32.33931675,144.01,143.94,40.90341675]
[1741134756403,81.8,144.0,143.94,40.90341675]
[1741134756695,114.13931675,144.0,143.93,45.37981675]
[1741134757076,121.08381675,144.0,143.93,45.37981675]
[1741134757276,114.13931675,143.99,143.93,6.0928]
[1741134757477,32.33931675,143.98,143.93,13.0406]
[1741134757798,81.8,143.99,143.93,357.37991675]
[1741134757979,81.8,143.99,143.95,32.33931675]
[1741134758178,81.8,143.99,143.93,325.0406]
[1741134758179,81.8,143.99,143.96,32.33931675]
[1741134758792,32.33931675,144.01,143.95,32.33931675]
[1741134758987,39.28331675,144.01,143.94,39.28621675]
[1741134759383,32.33931675,144.01,143.95,32.33931675]
[1741134759581,32.33931675,144.01,143.94,39.28621675]
[1741134759913,32.33931675,144.0,143.94,39.28621675]
[1741134760403,39.28321675,144.01,143.94,39.28621675]
[1741134760782,32.33931675,144.01,143.94,39.28621675]
[1741134761107,32.33931675,144.01,143.95,32.33931675]
[1741134761311,32.33931675,144.01,143.95,344.33931675]
[1741134761677,32.33931675,144.0,143.95,312.0]
[1741134761871,32.33931675,144.01,143.95,312.0]
[1741134762078,39.28331675,144.01,143.95,312.0]
[1741134762277,32.33931675,144.0,143.95,312.0]
[1741134762595,114.13931675,144.0,143.95,312.0]
[1741134762888,81.8,144.0,143.95,344.33931675]
[1741134763111,81.8,144.0,143.96,6.9463]
[1741134763433,81.8,144.0,143.97,32.33931675]
[1741134763577,81.8,144.04,143.98,32.33931675]
[1741134763782,0.033,144.01,143.98,32.33931675]
[1741134764214,0.033,144.01,143.97,32.33931675]
[1741134764597,32.37231675,144.01,143.95,39.28601675]
[1741134764817,114.13931675,144.0,143.95,6.9467]
[1741134765136,114.13931675,144.0,143.94,6.9473]
[1741134765305,32.33931675,143.98,143.93,13.0405]
[1741134765507,81.8,143.98,143.93,13.0405]
[1741134765728,114.13931675,143.98,143.93,6.9477]
[1741134766420,81.8,143.98,143.94,32.33931675]
[1741134766728,81.8,143.98,143.93,351.28701675]
[1741134767118,81.8,143.98,143.93,318.9477]
[1741134767822,32.33931675,143.96,143.92,6.9481]
[1741134768128,32.33931675,143.96,143.91,0.03]
[1741134768643,32.33931675,143.95,143.91,0.03]
[1741134769134,32.33931675,143.96,143.91,0.03]
[1741134769430,32.33931675,143.94,143.91,0.03]
[1741134769608,32.33931675,143.93,143.91,0.03]
[1741134770205,154.68385664,143.92,143.91,0.03]
[1741134770400,79.83215664,143.92,143.91,0.03]
[1741134772402,0.28432314,143.91,143.82,45.66111675]
[1741134772607,32.33931675,143.88,143.82,13.3218]
[1741134773400,32.33931675,143.89,143.83,32.33931675]
[1741134773631,32.33931675,143.91,143.85,52.33931675]
[1741134774017,32.33931675,143.9,143.85,20.0]
[1741134774607,32.33931675,143.89,143.85,20.0]
[1741134774832,0.28432314,143.91,143.83,6.9526]
[1741134774833,32.33931675,143.88,143.83,6.9526]
[1741134775330,32.33931675,143.87,143.83,6.9526]
[1741134775917,32.33931675,143.88,143.83,6.9526]
[1741134776120,114.13931675,143.9,143.83,39.29191675]
[1741134776430,32.33931675,143.89,143.83,39.29191675]
[1741134776617,88.7476,143.94,143.85,344.33931675]
[1741134776821,32.33931675,143.89,143.83,6.9526]
[1741134777126,32.33931675,143.86,143.82,13.3217]
[1741134777307,32.33931675,143.85,143.8,6.9541]
[1741134777933,32.33931675,143.86,143.8,6.9541]
[1741134778832,32.33931675,143.87,143.81,32.33931675]
[1741134780035,38.28363989,143.9,143.83,32.33931675]
[1741134780213,81.8,143.91,143.81,312.0]
[1741134780214,114.13931675,143.91,143.84,32.33931675]
[1741134780718,114.13931675,143.91,143.85,6.9516]
[1741134780719,32.33931675,143.9,143.85,6.9516]
[1741134780915,32.33931675,143.89,143.83,32.33931675]
[1741134781435,32.33931675,143.87,143.81,6.9536]
[1741134781615,32.33931675,143.86,143.81,6.9536]
[1741134781817,81.8,143.87,143.81,39.29291675]
[1741134781818,114.13931675,143.87,143.81,39.29291675]
[1741134782028,32.33931675,143.86,143.81,6.9536]
[1741134782226,32.33931675,143.85,143.81,6.9536]
[1741134782835,32.33931675,143.86,143.79,38.82261675]
[1741134783046,114.13931675,143.87,143.81,32.33931675]
[1741134783345,114.13931675,143.91,143.85,32.33931675]
[1741134783711,114.13931675,143.91,143.85,52.33931675]
[1741134783916,81.8,143.91,143.85,52.33931675]
[1741134784119,32.33931675,143.93,143.87,32.33931675]
[1741134784343,6.5915,143.96,143.89,32.33931675]
[1741134784344,32.33931675,143.95,143.89,32.33931675]
[1741134784547,114.13931675,143.95,143.89,32.33931675]
[1741134784844,81.8,143.95,143.9,32.33931675]
[1741134785015,92.35601113,143.95,143.91,6.9487]
[1741134785220,10.55601113,143.95,143.91,39.28801675]
[1741134785616,10.55601113,143.95,143.92,32.33931675]
[1741134786035,10.55601113,143.95,143.91,39.28801675]
[1741134786940,10.55601113,143.95,143.91,351.28801675]
[1741134787120,10.55601113,143.95,143.92,32.33931675]
[1741134787737,10.55601113,143.95,143.91,312.0]
[1741134787934,10.55601113,143.95,143.91,318.9487]
[1741134788125,32.33931675,143.96,143.91,318.9487]
[1741134788638,0.033,143.95,143.91,318.9487]
[1741134789134,0.033,143.95,143.87,13.1393]
[1741134789135,32.33931675,143.92,143.87,13.1393]
[1741134789438,32.33931675,143.91,143.86,81.6]
[1741134790236,32.33931675,143.9,143.84,81.6]
[1741134790434,32.33931675,143.89,143.83,45.93211675]
[1741134790615,32.33931675,143.9,143.83,45.93211675]
[1741134790812,32.33931675,143.9,143.84,32.33931675]
[1741134791217,6.9497,143.89,143.83,45.93211675]
[1741134791417,39.28901675,143.89,143.83,45.93211675]
[1741134791838,32.33931675,143.89,143.83,45.93211675]
[1741134792338,32.33931675,143.89,143.81,428.93]
[1741134792339,32.33931675,143.87,143.81,113.96931675]
[1741134792838,32.33931675,143.87,143.81,39.32281675]
[1741134793022,32.33931675,143.82,143.81,0.03]
[1741134793223,39.29241675,143.82,143.81,0.03]
[1741134793426,0.28432314,143.88,143.81,0.03]
[1741134793646,32.33931675,143.86,143.81,0.03]
[1741134793830,32.33931675,143.85,143.81,0.03]
[1741134794420,114.13931675,143.87,143.81,0.03]
[1741134794916,81.8,143.87,143.81,32.36931675]
[1741134795355,81.8,143.87,143.82,6.9531]
[1741134799124,114.13931675,143.9,143.83,32.33931675]
[1741134799319,114.13931675,143.9,143.83,6.9526]
[1741134799320,32.33931675,143.89,143.83,6.9526]
[1741134800066,114.13931675,143.9,143.84,32.33931675]
[1741134800351,81.8,143.9,143.84,32.33931675]
[1741134800918,0.033,143.91,143.86,32.33931675]
[1741134801349,0.033,143.91,143.86,113.93931675]
[1741134801532,0.033,143.91,143.87,6.9507]
[1741134801930,0.033,143.91,143.87,56.66671675]
[1741134802135,0.033,143.91,143.88,32.33931675]
[1741134802533,0.033,143.91,143.87,368.66671675]
[1741134802727,0.033,143.91,143.88,32.33931675]
[1741134803129,0.033,143.91,143.9,32.33931675]
[1741134803330,0.033,143.95,143.9,113.93931675]
[1741134803534,0.033,143.95,143.92,32.33931675]
[1741134803747,0.033,143.95,143.91,32.33931675]
[1741134804554,32.33931675,143.94,143.9,81.6]
[1741134804927,32.37231675,143.95,143.9,81.6]
[1741134805635,32.33931675,143.92,143.86,32.33931675]
[1741134805834,32.33931675,143.92,143.86,113.93931675]
[1741134806038,32.33931675,143.93,143.86,81.6]
[1741134806239,81.8,143.94,143.89,32.33931675]
[1741134806548,32.33931675,143.94,143.87,32.33931675]
[1741134806938,32.33931675,143.92,143.86,461.23931675]
[1741134807146,32.33931675,143.92,143.86,425.93931675]
[1741134807356,32.33931675,143.93,143.86,425.93931675]
[1741134807540,32.33931675,143.93,143.87,32.33931675]
[1741134808060,121.08661675,143.94,143.87,32.33931675]
[1741134808271,32.33931675,143.92,143.86,32.33931675]
[1741134808635,32.33931675,143.89,143.81,87.6558]
[1741134808830,114.13931675,143.89,143.82,32.33931675]
[1741134809065,32.33931675,143.88,143.81,119.99511675]
[1741134809539,32.33931675,143.87,143.81,119.99511675]
[1741134809868,39.29001675,143.87,143.81,87.6558]
[1741134810164,32.33931675,143.86,143.81,87.6558]
[1741134810372,32.33931675,143.85,143.81,0.03]
[1741134810539,32.33931675,143.83,143.81,0.03]
[1741134810737,32.33931675,143.82,143.81,0.03]
[1741134811676,39.29241675,143.82,143.81,0.03]
[1741134811857,45.96663989,143.82,143.81,0.0001]
[1741134813033,45.96663989,143.82,143.76,1.881524]
[1741134813034,0.28432314,143.78,143.76,1.881524]
[1741134813257,34.25653989,143.77,143.76,2.4e-05]
[1741134813970,0.28432314,143.73,143.66,0.03]
[1741134814135,32.33931675,143.7,143.66,0.03]
[1741134814339,32.33931675,143.7,143.63,118.62151675]
[1741134814557,32.33931675,143.71,143.65,32.33931675]
[1741134814838,32.33931675,143.72,143.65,344.33931675]
[1741134815141,32.33931675,143.71,143.65,345.20486275]
[1741134815349,32.33931675,143.71,143.65,312.865546]
[1741134815531,32.33931675,143.71,143.65,345.20486275]
[1741134815738,32.33931675,143.72,143.65,426.80486275]
[1741134815932,32.33931675,143.73,143.66,32.33931675]
[1741134816847,32.33931675,143.73,143.67,32.33931675]
[1741134817046,81.8,143.72,143.67,32.33931675]
[1741134817943,81.8,143.72,143.68,52.33931675]
[1741134818148,37.99931675,143.74,143.68,52.33931675]
[1741134818351,5.66,143.74,143.68,52.33931675]
[1741134818556,37.99931675,143.74,143.68,52.33931675]
[1741134818761,37.99931675,143.74,143.67,32.33931675]
[1741134818965,32.33931675,143.73,143.67,32.33931675]
[1741134819175,32.33931675,143.73,143.66,32.33931675]
[1741134820577,32.33931675,143.73,143.66,39.30011675]
[1741134820871,32.33931675,143.73,143.67,32.33931675]
[1741134821045,37.99931675,143.74,143.68,32.33931675]
[1741134821245,5.66,143.74,143.68,32.33931675]
[1741134821672,37.99931675,143.74,143.68,32.33931675]
[1741134821947,32.33931675,143.73,143.67,312.0]
[1741134822667,32.33931675,143.73,143.67,318.9603]
[1741134822877,32.33931675,143.73,143.67,351.29961675]
[1741134823657,81.8,143.76,143.68,32.33931675]
[1741134823864,114.13931675,143.76,143.69,32.33931675]
[1741134824065,32.33931675,143.75,143.69,32.33931675]
[1741134824348,32.33931675,143.74,143.68,81.6]
[1741134824758,32.33931675,143.74,143.68,88.5597]
[1741134825181,32.33931675,143.75,143.68,120.89901675]
[1741134825481,81.8,143.76,143.7,32.33931675]
[1741134825678,81.8,143.76,143.71,32.33931675]
[1741134825979,32.33931675,143.78,143.71,32.33931675]
[1741134826178,32.33931675,143.77,143.71,32.33931675]
[1741134826544,32.33931675,143.78,143.71,32.33931675]
[1741134826753,32.33931675,143.78,143.72,6.9579]
[1741134827172,114.13931675,143.79,143.73,32.33931675]
[1741134827450,81.8,143.79,143.73,32.33931675]
[1741134827754,114.13931675,143.79,143.73,32.33931675]
[1741134828171,114.13931675,143.79,143.72,120.89721675]
[1741134828857,114.13931675,143.79,143.73,32.33931675]
[1741134829681,114.13931675,143.79,143.72,138.29211675]
[1741134830250,32.33931675,143.78,143.72,454.68536322]
[1741134830452,32.33931675,143.76,143.72,82.465546]
[1741134830648,32.33931675,143.75,143.72,0.865546]
[1741134830851,6.9562,143.76,143.72,0.865546]
[1741134831154,32.33931675,143.74,143.72,0.865546]
[1741134831465,6.9562,143.76,143.72,0.865546]
[1741134831466,32.33931675,143.73,143.72,0.865546]
[1741134831853,32.62363989,143.73,143.72,0.865546]
[1741134832878,39.58103989,143.73,143.72,0.865546]
[1741134835598,39.58103989,143.73,143.72,4.6e-05]
[1741134835965,32.62363989,143.69,143.68,0.03]
[1741134836894,39.58303989,143.69,143.68,0.03]
[1741134837485,41.16483989,143.69,143.68,0.03]
[1741134837801,0.28432314,143.68,143.58,6.9647]
[1741134837977,32.33931675,143.63,143.58,6.9647]
[1741134838675,32.33931675,143.62,143.55,40.94951675]
[1741134838855,32.33931675,143.62,143.56,32.33931675]
[1741134839061,32.33931675,143.63,143.56,32.33931675]
[1741134839500,32.33931675,143.62,143.55,40.94951675]
[1741134839993,32.33931675,143.61,143.55,6.9661]
[1741134840377,32.62363989,143.64,143.54,318.9665]
[1741134840378,114.13931675,143.6,143.54,318.9665]
[1741134840902,32.33931675,143.59,143.54,6.9665]
[1741134841199,114.13931675,143.58,143.52,32.36931675]
[1741134841362,114.13931675,143.58,143.52,6.9975]
[1741134841566,81.8,143.58,143.52,39.33681675]
[1741134841786,114.13931675,143.58,143.52,39.33681675]
[1741134842300,81.8,143.58,143.53,32.33931675]
[1741134842596,81.8,143.58,143.54,32.33931675]
[1741134842962,81.8,143.58,143.52,24.4166]
[1741134843201,81.8,143.58,143.54,32.33931675]
[1741134843503,32.33931675,143.62,143.56,32.33931675]
[1741134843884,83.4545,143.65,143.58,32.33931675]
[1741134844092,114.13931675,143.64,143.58,32.33931675]
[1741134844277,32.33931675,143.63,143.57,32.33931675]
[1741134845101,32.33931675,143.63,143.58,6.9647]
[1741134845588,114.13931675,143.63,143.58,6.9647]
[1741134845767,32.33931675,143.62,143.56,6.9657]
[1741134845969,32.33931675,143.62,143.56,39.30501675]
[1741134846271,81.8,143.63,143.57,32.33931675]
[1741134846588,114.13931675,143.63,143.57,32.33931675]
[1741134846787,114.13931675,143.63,143.56,39.30501675]
[1741134846995,32.33931675,143.62,143.56,6.9657]
[1741134847170,32.33931675,143.62,143.56,39.30501675]
[1741134847595,114.13931675,143.63,143.56,39.30501675]
[1741134847772,114.13931675,143.63,143.57,32.33931675]
[1741134847968,81.8,143.63,143.57,32.33931675]
[1741134848289,114.13931675,143.68,143.61,32.33931675]
[1741134848478,81.8,143.67,143.61,32.33931675]
[1741134848671,114.13931675,143.67,143.61,32.33931675]
[1741134848879,81.8,143.67,143.61,32.33931675]
[1741134849188,81.8,143.67,143.62,39.30211675]
[1741134849791,114.13931675,143.67,143.62,6.9628]
[1741134850374,114.13931675,143.67,143.61,15.05207171]
[1741134850797,32.33931675,143.65,143.58,7.9338]
[1741134851007,32.33931675,143.63,143.56,113.93931675]
[1741134851180,32.33931675,143.62,143.56,81.6]
[1741134851383,32.33931675,143.62,143.56,6.9657]
[1741134851696,32.33931675,143.61,143.56,6.9657]
[1741134852505,32.33931675,143.61,143.55,0.03]
[1741134852803,32.33931675,143.61,143.55,6.9962]
[1741134852968,114.13931675,143.61,143.55,6.9962]
[1741134853169,114.13931675,143.6,143.55,0.03]
[1741134853384,32.33931675,143.59,143.55,0.03]
[1741134853588,114.13931675,143.59,143.55,0.03]
[1741134853791,81.8,143.59,143.55,0.03]
[1741134853970,114.13931675,143.59,143.55,0.03]
[1741134854393,32.33931675,143.57,143.55,0.03]
[1741134854582,81.8,143.56,143.55,0.03]
[1741134854771,32.33931675,143.57,143.55,0.03]
[1741134854971,45.95683989,143.56,143.47,8.8647013]
[1741134855172,32.33931675,143.5,143.47,1.8948013]
[1741134855372,32.33931675,143.49,143.47,1.8948013]
[1741134855583,32.62363989,143.48,143.47,1.8948013]
[1741134856017,32.33931675,143.48,143.47,1.8948013]
[1741134856167,32.62363989,143.48,143.47,1.8948013]
[1741134856372,39.59323989,143.48,143.47,1.8948013]
[1741134856892,0.28432314,143.47,143.36,39.31461675]
[1741134857084,32.33931675,143.4,143.34,32.33931675]
[1741134857284,5.66,143.46,143.27,17.4484]
[1741134857285,32.33931675,143.38,143.27,17.4484]
[1741134857602,5.66,143.46,143.35,32.33931675]
[1741134857784,0.28432314,143.45,143.32,1.5233]
[1741134857981,0.28432314,143.45,143.35,20.0]
[1741134858185,5.66,143.46,143.4,39.31251675]
[1741134858388,37.99931675,143.46,143.36,6.9754]
[1741134858599,37.99931675,143.46,143.39,32.33931675]
[1741134859283,32.33931675,143.45,143.38,32.33931675]
[1741134859487,37.99931675,143.46,143.39,32.33931675]
[1741134859879,37.99931675,143.46,143.4,32.33931675]
[1741134859880,5.66,143.46,143.4,32.33931675]
[1741134860074,32.33931675,143.45,143.36,336.414]
[1741134860294,32.33931675,143.43,143.37,32.33931675]
[1741134860486,32.33931675,143.42,143.36,39.31471675]
[1741134860696,32.33931675,143.42,143.36,6.9754]
[1741134860895,32.33931675,143.42,143.36,39.31471675]
[1741134861095,32.33931675,143.42,143.34,6.9761]
[1741134861404,32.33931675,143.4,143.34,39.31541675]
[1741134861607,1.83502314,143.45,143.35,32.33931675]
[1741134861779,32.33931675,143.43,143.36,32.33931675]
[1741134861981,32.33931675,143.42,143.36,32.33931675]
[1741134862276,32.33931675,143.42,143.36,39.31451675]
[1741134862906,32.33931675,143.41,143.36,6.9752]
[1741134863278,32.33931675,143.42,143.36,39.31451675]
[1741134863498,32.33931675,143.42,143.36,6.9752]
[1741134863799,32.33931675,143.42,143.36,5.9752]
[1741134863999,81.8,143.44,143.36,6.0052]
[1741134864201,32.33931675,143.42,143.36,38.34451675]